[Event "Late-Titled-Tuesday-Blitz-April-02-2024"]
[Site "Chess.com"]
[Date "2024.04.02"]
[Round "4"]
[White "giovannibrandao7"]
[Black "Duhless"]
[Result "0-1"]
[WhiteElo "2162"]
[BlackElo "3090"]
[TimeControl "180+1"]
[EndTime "14:35:28 PDT"]
[Termination "Duhless won on time"]

1. e4 {[%clk 0:03:00]} 1... Nc6 {[%clk 0:02:47.2]} 2. d4 {[%clk 0:02:59.3]} 2...
d5 {[%clk 0:02:45.6]} 3. e5 {[%clk 0:02:59.5]} 3... Bf5 {[%clk 0:02:45.4]} 4. c3
{[%clk 0:02:58]} 4... e6 {[%clk 0:02:46.3]} 5. f4 {[%clk 0:02:57.8]} 5... f6
{[%clk 0:02:46.8]} 6. Nf3 {[%clk 0:02:58.2]} 6... Nge7 {[%clk 0:02:47.5]} 7. Bd3
{[%clk 0:02:54.9]} 7... Qd7 {[%clk 0:02:47.7]} 8. O-O {[%clk 0:02:54.8]} 8...
O-O-O {[%clk 0:02:46.8]} 9. a4 {[%clk 0:02:53.6]} 9... Bxd3 {[%clk 0:02:45]} 10.
Qxd3 {[%clk 0:02:53.4]} 10... Nf5 {[%clk 0:02:45.9]} 11. a5 {[%clk 0:02:44.9]}
11... a6 {[%clk 0:02:45.4]} 12. b4 {[%clk 0:02:44]} 12... fxe5 {[%clk
0:02:45.9]} 13. fxe5 {[%clk 0:02:43.7]} 13... Na7 {[%clk 0:02:44.5]} 14. Ng5
{[%clk 0:02:35.8]} 14... g6 {[%clk 0:02:43.6]} 15. g4 {[%clk 0:02:11.2]} 15...
Nh6 {[%clk 0:02:43.3]} 16. Rf6 {[%clk 0:01:57.4]} 16... Be7 {[%clk 0:02:40.3]}
17. Nf7 {[%clk 0:01:14.2]} 17... Bxf6 {[%clk 0:02:39.4]} 18. Nxd8 {[%clk
0:00:59.2]} 18... Bg7 {[%clk 0:02:38.2]} 19. Nxb7 {[%clk 0:00:52.9]} 19... Kxb7
{[%clk 0:02:37.6]} 20. Na3 {[%clk 0:00:46.3]} 20... Nxg4 {[%clk 0:02:36]} 21. h3
{[%clk 0:00:34.1]} 21... Nh6 {[%clk 0:02:35.6]} 22. Bg5 {[%clk 0:00:28.6]} 22...
Nf5 {[%clk 0:02:35.2]} 23. Rb1 {[%clk 0:00:23.2]} 23... Nb5 {[%clk 0:02:34.8]}
24. Nxb5 {[%clk 0:00:07.1]} 24... Qxb5 {[%clk 0:02:35.7]} 25. Qxb5+ {[%clk
0:00:07.3]} 25... axb5 {[%clk 0:02:35.9]} 26. Kg2 {[%clk 0:00:04]} 26... Rf8
{[%clk 0:02:35]} 27. Bd2 {[%clk 0:00:04.2]} 27... Nh4+ {[%clk 0:02:34.5]} 28.
Kg3 {[%clk 0:00:03.8]} 28... Nf5+ {[%clk 0:02:34.9]} 29. Kg2 {[%clk 0:00:02.6]}
29... Bh6 {[%clk 0:02:35.8]} 30. Bxh6 {[%clk 0:00:02.1]} 30... Nxh6 {[%clk
0:02:36.7]} 31. Rf1 {[%clk 0:00:01.9]} 31... Nf5 {[%clk 0:02:37.6]} 32. Rf4
{[%clk 0:00:01.6]} 32... Ne3+ {[%clk 0:02:37.7]} 33. Kg3 {[%clk 0:00:02.1]}
33... Rxf4 {[%clk 0:02:38.6]} 34. Kxf4 {[%clk 0:00:02.7]} 34... Nd1 {[%clk
0:02:39.5]} 35. Kg5 {[%clk 0:00:01.8]} 35... Nxc3 {[%clk 0:02:38.3]} 36. Kh6
{[%clk 0:00:02.3]} 36... Ne2 {[%clk 0:02:35.1]} 37. Kxh7 {[%clk 0:00:01.6]}
37... Nxd4 {[%clk 0:02:36]} 38. Kxg6 {[%clk 0:00:01.8]} 38... Nf3 {[%clk
0:02:36.9]} 39. Kh5 {[%clk 0:00:01.2]} 39... d4 {[%clk 0:02:37.3]} 40. Kg4
{[%clk 0:00:01.1]} 40... Nxe5+ {[%clk 0:02:37.9]} 41. Kf4 {[%clk 0:00:01.5]}
41... Ng6+ {[%clk 0:02:37.5]} 42. Ke4 {[%clk 0:00:01.1]} 42... e5 {[%clk
0:02:38.4]} 0-1

[Event "Late-Titled-Tuesday-Blitz-April-02-2024"]
[Site "Chess.com"]
[Date "2024.04.02"]
[Round "4"]
[White "rhwr"]
[Black "Statham_01"]
[Result "0-1"]
[WhiteElo "2290"]
[BlackElo "2618"]
[TimeControl "180+1"]
[EndTime "14:35:35 PDT"]
[Termination "Statham_01 won by resignation"]

1. e4 {[%clk 0:03:00]} 1... c5 {[%clk 0:02:59.8]} 2. Nf3 {[%clk 0:03:00.2]} 2...
Nc6 {[%clk 0:03:00.4]} 3. d4 {[%clk 0:02:59.7]} 3... cxd4 {[%clk 0:03:01.3]} 4.
Nxd4 {[%clk 0:03:00.2]} 4... e5 {[%clk 0:02:59.6]} 5. Nb5 {[%clk 0:03:00.1]}
5... a6 {[%clk 0:03:00]} 6. N5c3 {[%clk 0:02:54.2]} 6... Nf6 {[%clk 0:02:58.7]}
7. Bg5 {[%clk 0:02:51.8]} 7... Bc5 {[%clk 0:02:57.9]} 8. Bd3 {[%clk 0:02:43.3]}
8... d6 {[%clk 0:02:51.3]} 9. O-O {[%clk 0:02:43.1]} 9... Be6 {[%clk 0:02:49.2]}
10. Nd5 {[%clk 0:02:41.8]} 10... Bxd5 {[%clk 0:02:44.1]} 11. exd5 {[%clk
0:02:42.7]} 11... Ne7 {[%clk 0:02:44.8]} 12. c4 {[%clk 0:02:42]} 12... h6 {[%clk
0:02:33.6]} 13. Be3 {[%clk 0:02:36.7]} 13... Qc7 {[%clk 0:02:21.4]} 14. Bxc5
{[%clk 0:02:35.3]} 14... Qxc5 {[%clk 0:02:22.3]} 15. Nc3 {[%clk 0:02:34.8]}
15... O-O {[%clk 0:02:18.7]} 16. Rb1 {[%clk 0:02:21.1]} 16... Rac8 {[%clk
0:02:17.6]} 17. b4 {[%clk 0:02:19.2]} 17... Qd4 {[%clk 0:02:17.4]} 18. Ne2
{[%clk 0:02:15.3]} 18... Qh4 {[%clk 0:02:17.5]} 19. h3 {[%clk 0:02:08.2]} 19...
e4 {[%clk 0:02:14.4]} 20. Bc2 {[%clk 0:02:04.9]} 20... Rxc4 {[%clk 0:02:14.1]}
21. Ng3 {[%clk 0:02:02.9]} 21... e3 {[%clk 0:02:02.8]} 22. Nf5 {[%clk
0:01:52.6]} 22... Nxf5 {[%clk 0:02:03]} 23. Bxf5 {[%clk 0:01:52.3]} 23... Rf4
{[%clk 0:02:03.5]} 24. g3 {[%clk 0:01:34.4]} 24... Qg5 {[%clk 0:01:45.8]} 25.
Bg4 {[%clk 0:01:34]} 25... exf2+ {[%clk 0:01:41.9]} 26. Rxf2 {[%clk 0:01:28.8]}
26... Rxf2 {[%clk 0:01:40.7]} 27. Kxf2 {[%clk 0:01:27.4]} 27... Re8 {[%clk
0:01:35.4]} 28. Rb3 {[%clk 0:01:14.6]} 28... h5 {[%clk 0:01:23.4]} 29. Bf3
{[%clk 0:01:12]} 29... h4 {[%clk 0:01:24.1]} 30. g4 {[%clk 0:01:08.7]} 30... Qf4
{[%clk 0:01:24.1]} 31. Kg1 {[%clk 0:00:56.9]} 31... Qg3+ {[%clk 0:01:22.3]} 32.
Bg2 {[%clk 0:00:51.8]} 32... Re1+ {[%clk 0:01:21.6]} 0-1

[Event "Late-Titled-Tuesday-Blitz-April-02-2024"]
[Site "Chess.com"]
[Date "2024.04.02"]
[Round "4"]
[White "ritanovikova"]
[Black "sorch29"]
[Result "0-1"]
[WhiteElo "2161"]
[BlackElo "2435"]
[TimeControl "180+1"]
[EndTime "14:35:35 PDT"]
[Termination "sorch29 won on time"]

1. e4 {[%clk 0:02:55]} 1... c5 {[%clk 0:03:00.1]} 2. Nc3 {[%clk 0:02:54.8]} 2...
Nc6 {[%clk 0:02:59.8]} 3. d3 {[%clk 0:02:55.7]} 3... g6 {[%clk 0:02:59.4]} 4.
Be3 {[%clk 0:02:56.6]} 4... d6 {[%clk 0:02:54.6]} 5. Qd2 {[%clk 0:02:56.9]} 5...
Bg7 {[%clk 0:02:55.3]} 6. g3 {[%clk 0:02:57.1]} 6... e5 {[%clk 0:02:55.5]} 7.
Bg2 {[%clk 0:02:57.1]} 7... Nd4 {[%clk 0:02:52.5]} 8. Nd1 {[%clk 0:02:55.5]}
8... Ne7 {[%clk 0:02:46]} 9. c3 {[%clk 0:02:54.2]} 9... Ne6 {[%clk 0:02:45.5]}
10. Bh6 {[%clk 0:02:53.7]} 10... O-O {[%clk 0:02:44.4]} 11. h4 {[%clk
0:02:53.6]} 11... f5 {[%clk 0:02:38.2]} 12. h5 {[%clk 0:02:53]} 12... f4 {[%clk
0:02:34.9]} 13. hxg6 {[%clk 0:02:50.8]} 13... hxg6 {[%clk 0:02:25]} 14. Bh3
{[%clk 0:02:37]} 14... Bxh6 {[%clk 0:02:18.9]} 15. Bxe6+ {[%clk 0:02:36.8]}
15... Bxe6 {[%clk 0:02:19.8]} 16. Rxh6 {[%clk 0:02:36]} 16... Kg7 {[%clk
0:02:14.3]} 17. Rh2 {[%clk 0:02:32.1]} 17... Rh8 {[%clk 0:01:58.5]} 18. Rxh8
{[%clk 0:02:19.8]} 18... Qxh8 {[%clk 0:01:59.4]} 19. Qe2 {[%clk 0:01:04.9]}
19... Qh2 {[%clk 0:01:47.4]} 20. Nf3 {[%clk 0:00:24.2]} 20... Qh1+ {[%clk
0:01:46.9]} 21. Kd2 {[%clk 0:00:22.1]} 21... Bg4 {[%clk 0:01:47.2]} 22. Ne3
{[%clk 0:00:02.1]} 22... fxe3+ {[%clk 0:01:43.9]} 0-1

[Event "Late-Titled-Tuesday-Blitz-April-02-2024"]
[Site "Chess.com"]
[Date "2024.04.02"]
[Round "4"]
[White "Kavyev_Ruslan"]
[Black "LeninGuerra"]
[Result "0-1"]
[WhiteElo "2398"]
[BlackElo "2714"]
[TimeControl "180+1"]
[EndTime "14:35:43 PDT"]
[Termination "LeninGuerra won by checkmate"]

1. d4 {[%clk 0:03:00.9]} 1... Nf6 {[%clk 0:02:59]} 2. c4 {[%clk 0:03:01]} 2...
c5 {[%clk 0:02:58.3]} 3. d5 {[%clk 0:03:00.8]} 3... b5 {[%clk 0:02:58.4]} 4.
cxb5 {[%clk 0:03:00.2]} 4... a6 {[%clk 0:02:58.9]} 5. e3 {[%clk 0:02:59.1]} 5...
g6 {[%clk 0:02:58]} 6. Nc3 {[%clk 0:02:59]} 6... Bg7 {[%clk 0:02:57.9]} 7. Nf3
{[%clk 0:02:58.7]} 7... d6 {[%clk 0:02:58.1]} 8. bxa6 {[%clk 0:02:58.8]} 8...
Bxa6 {[%clk 0:02:56.5]} 9. Bxa6 {[%clk 0:02:59.1]} 9... Rxa6 {[%clk 0:02:55.3]}
10. O-O {[%clk 0:03:00]} 10... O-O {[%clk 0:02:55.1]} 11. a4 {[%clk 0:02:57.9]}
11... Nbd7 {[%clk 0:02:55.2]} 12. Re1 {[%clk 0:02:54.9]} 12... Qa8 {[%clk
0:02:55.1]} 13. e4 {[%clk 0:02:54.2]} 13... Rb8 {[%clk 0:02:55.7]} 14. e5 {[%clk
0:02:50.5]} 14... Ng4 {[%clk 0:02:42.1]} 15. e6 {[%clk 0:02:28.6]} 15... fxe6
{[%clk 0:02:38.3]} 16. Rxe6 {[%clk 0:02:27.7]} 16... Bf6 {[%clk 0:02:38.3]} 17.
Bg5 {[%clk 0:02:21.1]} 17... Rxb2 {[%clk 0:02:29.3]} 18. Bxf6 {[%clk 0:02:20.5]}
18... exf6 {[%clk 0:02:29.4]} 19. Ne4 {[%clk 0:02:11.7]} 19... f5 {[%clk
0:01:33.8]} 20. Qc1 {[%clk 0:02:10.6]} 20... fxe4 {[%clk 0:01:28.3]} 21. Qxb2
{[%clk 0:02:10.1]} 21... exf3 {[%clk 0:01:28.8]} 22. Re7 {[%clk 0:02:10.2]}
22... Nde5 {[%clk 0:01:24.5]} 23. h3 {[%clk 0:02:03.2]} 23... Nf6 {[%clk
0:00:25.3]} 24. gxf3 {[%clk 0:02:02.7]} 24... Qf8 {[%clk 0:00:23]} 25. Re6
{[%clk 0:02:01]} 25... Nxf3+ {[%clk 0:00:21.7]} 26. Kg2 {[%clk 0:02:01.5]} 26...
Nd4 {[%clk 0:00:22.1]} 27. Re3 {[%clk 0:01:59.4]} 27... Ra8 {[%clk 0:00:20.9]}
28. Rae1 {[%clk 0:01:55.1]} 28... Nxd5 {[%clk 0:00:19.9]} 29. Rg3 {[%clk
0:01:54]} 29... Qf7 {[%clk 0:00:20.1]} 30. Qb7 {[%clk 0:01:51.4]} 30... Qxb7
{[%clk 0:00:19]} 31. Kh2 {[%clk 0:01:50.5]} 31... Nf4 {[%clk 0:00:18.5]} 32.
Ree3 {[%clk 0:01:45.5]} 32... Rf8 {[%clk 0:00:18.1]} 33. Kg1 {[%clk 0:01:44.5]}
33... Qb1+ {[%clk 0:00:15.4]} 34. Kh2 {[%clk 0:01:43.8]} 34... Nde2 {[%clk
0:00:15.6]} 35. Rgf3 {[%clk 0:01:43.4]} 35... Qg1# {[%clk 0:00:15.1]} 0-1

[Event "Late-Titled-Tuesday-Blitz-April-02-2024"]
[Site "Chess.com"]
[Date "2024.04.02"]
[Round "4"]
[White "cthulhuuu"]
[Black "grandcoach"]
[Result "1-0"]
[WhiteElo "2455"]
[BlackElo "2224"]
[TimeControl "180+1"]
[EndTime "14:35:48 PDT"]
[Termination "cthulhuuu won on time"]

1. e4 {[%clk 0:02:59.9]} 1... c5 {[%clk 0:02:57.1]} 2. Nf3 {[%clk 0:03:00.2]}
2... Nc6 {[%clk 0:02:56.6]} 3. g3 {[%clk 0:03:00.1]} 3... e5 {[%clk 0:02:55.4]}
4. Bg2 {[%clk 0:03:00.6]} 4... g6 {[%clk 0:02:54.8]} 5. O-O {[%clk 0:03:00.8]}
5... Bg7 {[%clk 0:02:55.4]} 6. d3 {[%clk 0:03:01.4]} 6... Nge7 {[%clk 0:02:55]}
7. Nc3 {[%clk 0:03:02.2]} 7... O-O {[%clk 0:02:54.4]} 8. Nd2 {[%clk 0:03:02.9]}
8... d6 {[%clk 0:02:49.4]} 9. Nc4 {[%clk 0:03:02.7]} 9... f5 {[%clk 0:02:39]}
10. Nb5 {[%clk 0:02:57.3]} 10... Rf6 {[%clk 0:02:30.5]} 11. Bg5 {[%clk
0:02:56.6]} 11... Re6 {[%clk 0:02:30.6]} 12. exf5 {[%clk 0:02:55.9]} 12... gxf5
{[%clk 0:02:29.8]} 13. Bd5 {[%clk 0:02:56]} 13... a6 {[%clk 0:02:02.7]} 14.
Nbxd6 {[%clk 0:02:45.6]} 14... b5 {[%clk 0:01:31.2]} 15. Nxc8 {[%clk 0:02:15.1]}
15... Qxd5 {[%clk 0:01:12.6]} 16. N4b6 {[%clk 0:02:10.5]} 16... Qd8 {[%clk
0:01:00.5]} 17. Nxe7+ {[%clk 0:01:57.2]} 17... Nxe7 {[%clk 0:00:52.9]} 18. Nxa8
{[%clk 0:01:54.5]} 18... Qxa8 {[%clk 0:00:53.2]} 19. Bxe7 {[%clk 0:01:45.5]}
19... Rxe7 {[%clk 0:00:52.7]} 20. c3 {[%clk 0:01:45.9]} 20... f4 {[%clk
0:00:30.6]} 21. a4 {[%clk 0:01:36.2]} 21... b4 {[%clk 0:00:24.6]} 22. cxb4
{[%clk 0:01:36.3]} 22... cxb4 {[%clk 0:00:25.5]} 23. Qb3+ {[%clk 0:01:35.4]}
23... Kh8 {[%clk 0:00:20.2]} 24. Qxb4 {[%clk 0:01:35.6]} 24... Rf7 {[%clk
0:00:06.8]} 25. Qe4 {[%clk 0:01:34.1]} 1-0

[Event "Late-Titled-Tuesday-Blitz-April-02-2024"]
[Site "Chess.com"]
[Date "2024.04.02"]
[Round "4"]
[White "RebelJohnny"]
[Black "PapaieDudu"]
[Result "1-0"]
[WhiteElo "2606"]
[BlackElo "2385"]
[TimeControl "180+1"]
[EndTime "14:35:52 PDT"]
[Termination "RebelJohnny won by resignation"]

1. e4 {[%clk 0:03:00.9]} 1... c5 {[%clk 0:03:00.4]} 2. Nf3 {[%clk 0:03:00.8]}
2... d6 {[%clk 0:03:00.8]} 3. d4 {[%clk 0:03:01.4]} 3... cxd4 {[%clk 0:03:01.7]}
4. Nxd4 {[%clk 0:03:02.3]} 4... Nf6 {[%clk 0:03:02.5]} 5. Nc3 {[%clk 0:03:03.1]}
5... a6 {[%clk 0:03:03.2]} 6. Bg5 {[%clk 0:03:03.6]} 6... e6 {[%clk 0:03:03.9]}
7. f4 {[%clk 0:03:02.3]} 7... Nbd7 {[%clk 0:03:04.4]} 8. Qe2 {[%clk 0:02:36.3]}
8... Qc7 {[%clk 0:03:04]} 9. O-O-O {[%clk 0:02:36.6]} 9... b5 {[%clk 0:03:03.4]}
10. a3 {[%clk 0:02:37.2]} 10... Be7 {[%clk 0:03:03.2]} 11. g4 {[%clk 0:02:37.6]}
11... Bb7 {[%clk 0:03:03.4]} 12. Bh4 {[%clk 0:02:33.2]} 12... Nc5 {[%clk
0:02:56.9]} 13. Bg2 {[%clk 0:02:26.2]} 13... O-O {[%clk 0:02:53.5]} 14. g5
{[%clk 0:02:24.2]} 14... Nfd7 {[%clk 0:02:53.2]} 15. f5 {[%clk 0:02:23]} 15...
Rac8 {[%clk 0:02:28.4]} 16. fxe6 {[%clk 0:02:14.6]} 16... fxe6 {[%clk
0:02:25.9]} 17. Bh3 {[%clk 0:02:15.2]} 17... Ne5 {[%clk 0:01:57.3]} 18. Nxe6
{[%clk 0:02:11.8]} 18... Nxe6 {[%clk 0:01:57.4]} 19. Bxe6+ {[%clk 0:02:12.7]}
19... Kh8 {[%clk 0:01:57.5]} 20. Bxc8 {[%clk 0:02:10.7]} 20... Rxc8 {[%clk
0:01:50]} 21. Kb1 {[%clk 0:02:09.9]} 21... Qc5 {[%clk 0:01:31.6]} 22. Nd5 {[%clk
0:01:54]} 22... Bd8 {[%clk 0:01:29.1]} 23. Rhf1 {[%clk 0:01:51.3]} 23... Ng6
{[%clk 0:01:15.3]} 24. Bf2 {[%clk 0:01:45.1]} 24... Qc6 {[%clk 0:01:12.2]} 25.
h4 {[%clk 0:01:41.9]} 25... Ne5 {[%clk 0:00:34]} 26. Bd4 {[%clk 0:01:37.1]}
26... Ba5 {[%clk 0:00:30.6]} 27. Bxe5 {[%clk 0:01:12.5]} 27... dxe5 {[%clk
0:00:30.6]} 28. Ne7 {[%clk 0:01:12.8]} 1-0

[Event "Late-Titled-Tuesday-Blitz-April-02-2024"]
[Site "Chess.com"]
[Date "2024.04.02"]
[Round "4"]
[White "bipe137"]
[Black "dolynachess"]
[Result "1-0"]
[WhiteElo "2661"]
[BlackElo "2518"]
[TimeControl "180+1"]
[EndTime "14:35:58 PDT"]
[Termination "bipe137 won by checkmate"]

1. d4 {[%clk 0:03:00.9]} 1... Nf6 {[%clk 0:02:55.8]} 2. c4 {[%clk 0:03:01.1]}
2... c5 {[%clk 0:02:56.4]} 3. d5 {[%clk 0:03:01.2]} 3... b5 {[%clk 0:02:56.2]}
4. Nf3 {[%clk 0:03:01.7]} 4... b4 {[%clk 0:02:55.2]} 5. Qc2 {[%clk 0:02:59.5]}
5... g6 {[%clk 0:02:54.9]} 6. e4 {[%clk 0:03:00.1]} 6... d6 {[%clk 0:02:55.3]}
7. a3 {[%clk 0:02:59.9]} 7... Bg7 {[%clk 0:02:54.3]} 8. Bd3 {[%clk 0:02:58.1]}
8... O-O {[%clk 0:02:53.6]} 9. O-O {[%clk 0:02:58.7]} 9... a5 {[%clk 0:02:53.6]}
10. Re1 {[%clk 0:02:58.5]} 10... Ng4 {[%clk 0:02:41.7]} 11. h3 {[%clk
0:02:54.7]} 11... Ne5 {[%clk 0:02:41.2]} 12. Nxe5 {[%clk 0:02:55.3]} 12... Bxe5
{[%clk 0:02:41.8]} 13. Nd2 {[%clk 0:02:55.7]} 13... Nd7 {[%clk 0:02:28]} 14. Nf3
{[%clk 0:02:55.9]} 14... Bg7 {[%clk 0:02:27.4]} 15. Bf4 {[%clk 0:02:55.7]} 15...
Qc7 {[%clk 0:02:25.3]} 16. Rac1 {[%clk 0:02:47.5]} 16... Re8 {[%clk 0:02:22.6]}
17. e5 {[%clk 0:02:43.7]} 17... Nxe5 {[%clk 0:02:03.2]} 18. Nxe5 {[%clk
0:02:42.8]} 18... dxe5 {[%clk 0:02:03.5]} 19. Bg3 {[%clk 0:02:42.2]} 19... Rb8
{[%clk 0:01:34]} 20. h4 {[%clk 0:02:38.6]} 20... e6 {[%clk 0:01:29.5]} 21. h5
{[%clk 0:02:35.7]} 21... Rb6 {[%clk 0:01:04.2]} 22. hxg6 {[%clk 0:02:32.9]}
22... hxg6 {[%clk 0:01:05.1]} 23. axb4 {[%clk 0:02:21.7]} 23... axb4 {[%clk
0:00:59.3]} 24. Ra1 {[%clk 0:02:22.2]} 24... Bb7 {[%clk 0:00:55.8]} 25. Ra7
{[%clk 0:02:14.6]} 25... Qb8 {[%clk 0:00:48.3]} 26. Rea1 {[%clk 0:02:15.1]}
26... Qc8 {[%clk 0:00:38.4]} 27. Be4 {[%clk 0:02:07]} 27... f5 {[%clk
0:00:35.4]} 28. Bd3 {[%clk 0:01:59.9]} 28... exd5 {[%clk 0:00:24.3]} 29. cxd5
{[%clk 0:01:59.8]} 29... Bxd5 {[%clk 0:00:24]} 30. Bc4 {[%clk 0:01:56.8]} 30...
Qe6 {[%clk 0:00:20.2]} 31. Bxd5 {[%clk 0:01:54]} 31... Qxd5 {[%clk 0:00:21.1]}
32. Rd1 {[%clk 0:01:53.9]} 32... Qc6 {[%clk 0:00:18.7]} 33. Rdd7 {[%clk
0:01:53]} 33... Bf6 {[%clk 0:00:15.6]} 34. Bh4 {[%clk 0:01:48.7]} 34... Rf8
{[%clk 0:00:08.8]} 35. Bxf6 {[%clk 0:01:47.2]} 35... Qxf6 {[%clk 0:00:09.7]} 36.
Qc4+ {[%clk 0:01:46.2]} 36... Qe6 {[%clk 0:00:06.9]} 37. Rg7+ {[%clk 0:01:46.1]}
37... Kh8 {[%clk 0:00:06.5]} 38. Qh4# {[%clk 0:01:46.6]} 1-0

[Event "Late-Titled-Tuesday-Blitz-April-02-2024"]
[Site "Chess.com"]
[Date "2024.04.02"]
[Round "4"]
[White "santosalberto1987"]
[Black "NateSolon"]
[Result "1-0"]
[WhiteElo "2518"]
[BlackElo "2686"]
[TimeControl "180+1"]
[EndTime "14:36:03 PDT"]
[Termination "santosalberto1987 won by resignation"]

1. e4 {[%clk 0:03:00.9]} 1... c5 {[%clk 0:02:59.7]} 2. Nf3 {[%clk 0:03:00.9]}
2... Nf6 {[%clk 0:02:59.8]} 3. Nc3 {[%clk 0:03:00.8]} 3... d5 {[%clk 0:02:59.3]}
4. exd5 {[%clk 0:03:00.9]} 4... Nxd5 {[%clk 0:03:00]} 5. Bc4 {[%clk 0:03:01.1]}
5... Nb6 {[%clk 0:02:59.6]} 6. Bb5+ {[%clk 0:02:56.9]} 6... Bd7 {[%clk
0:02:59.7]} 7. Bxd7+ {[%clk 0:02:56.4]} 7... Qxd7 {[%clk 0:02:59.2]} 8. O-O
{[%clk 0:02:56.1]} 8... Nc6 {[%clk 0:02:59]} 9. Qe2 {[%clk 0:02:54.6]} 9... g6
{[%clk 0:02:56.4]} 10. Ne5 {[%clk 0:02:53.4]} 10... Qc7 {[%clk 0:02:27.7]} 11.
Nxc6 {[%clk 0:02:50.9]} 11... Qxc6 {[%clk 0:02:28.6]} 12. Qe5 {[%clk 0:02:50.9]}
12... f6 {[%clk 0:02:25.8]} 13. Qe4 {[%clk 0:02:50.8]} 13... Qxe4 {[%clk
0:02:19.1]} 14. Nxe4 {[%clk 0:02:51.7]} 14... Rc8 {[%clk 0:02:19.2]} 15. d3
{[%clk 0:02:49]} 15... Kf7 {[%clk 0:02:17.4]} 16. Bd2 {[%clk 0:02:44.7]} 16...
Nd5 {[%clk 0:02:14.6]} 17. a3 {[%clk 0:02:42.8]} 17... e5 {[%clk 0:02:10]} 18.
c4 {[%clk 0:02:40.8]} 18... Nc7 {[%clk 0:01:58.1]} 19. f4 {[%clk 0:02:40.8]}
19... exf4 {[%clk 0:01:36.2]} 20. Rxf4 {[%clk 0:02:39.2]} 20... Be7 {[%clk
0:01:31.5]} 21. Bc3 {[%clk 0:02:29.6]} 21... Ne6 {[%clk 0:01:27.1]} 22. Rf2
{[%clk 0:02:22.1]} 22... f5 {[%clk 0:01:14]} 23. Bxh8 {[%clk 0:02:20.1]} 23...
Rxh8 {[%clk 0:01:14.9]} 24. g4 {[%clk 0:02:16.6]} 24... f4 {[%clk 0:01:15.3]}
25. Nc3 {[%clk 0:02:13.5]} 25... Bf6 {[%clk 0:01:12.3]} 26. Kg2 {[%clk 0:02:08]}
26... h5 {[%clk 0:00:57.5]} 27. Nd5 {[%clk 0:02:02.4]} 27... Bd4 {[%clk
0:00:57.3]} 28. Rff1 {[%clk 0:01:52.8]} 28... g5 {[%clk 0:00:54]} 29. gxh5
{[%clk 0:01:46.7]} 29... Rxh5 {[%clk 0:00:54.9]} 30. Rae1 {[%clk 0:01:45.2]}
30... b6 {[%clk 0:00:49.2]} 31. b4 {[%clk 0:01:44.6]} 31... Bb2 {[%clk
0:00:36.4]} 32. b5 {[%clk 0:01:34.1]} 32... Bd4 {[%clk 0:00:27.4]} 33. a4 {[%clk
0:01:33.5]} 33... Rh6 {[%clk 0:00:12.4]} 34. Re4 {[%clk 0:01:31.4]} 1-0

[Event "Late-Titled-Tuesday-Blitz-April-02-2024"]
[Site "Chess.com"]
[Date "2024.04.02"]
[Round "4"]
[White "Doublekk14"]
[Black "VanRommel28"]
[Result "0-1"]
[WhiteElo "2360"]
[BlackElo "2569"]
[TimeControl "180+1"]
[EndTime "14:36:03 PDT"]
[Termination "VanRommel28 won on time"]

1. c4 {[%clk 0:03:00.9]} 1... g6 {[%clk 0:02:44.3]} 2. Nc3 {[%clk 0:02:59.3]}
2... Bg7 {[%clk 0:02:44.7]} 3. e3 {[%clk 0:02:59]} 3... d6 {[%clk 0:02:44.6]} 4.
Nf3 {[%clk 0:02:59.4]} 4... Nf6 {[%clk 0:02:43.5]} 5. d4 {[%clk 0:02:59.4]} 5...
O-O {[%clk 0:02:44.4]} 6. Be2 {[%clk 0:02:59.1]} 6... Nbd7 {[%clk 0:02:45]} 7.
O-O {[%clk 0:02:58.8]} 7... e5 {[%clk 0:02:45.7]} 8. dxe5 {[%clk 0:02:58.3]}
8... dxe5 {[%clk 0:02:46.6]} 9. e4 {[%clk 0:02:58.5]} 9... c6 {[%clk 0:02:45.7]}
10. h3 {[%clk 0:02:58]} 10... Qe7 {[%clk 0:02:45.1]} 11. Be3 {[%clk 0:02:49.4]}
11... Rd8 {[%clk 0:02:43.7]} 12. Qc2 {[%clk 0:02:49.2]} 12... Nh5 {[%clk
0:02:37.2]} 13. Rad1 {[%clk 0:02:37.5]} 13... Nf4 {[%clk 0:02:36.3]} 14. Bxf4
{[%clk 0:02:36.5]} 14... exf4 {[%clk 0:02:37.2]} 15. Qd2 {[%clk 0:02:18.3]}
15... g5 {[%clk 0:02:27.5]} 16. Nh2 {[%clk 0:02:10.8]} 16... Bf6 {[%clk
0:02:15.2]} 17. Bg4 {[%clk 0:02:06.1]} 17... Ne5 {[%clk 0:02:13.2]} 18. Qxd8+
{[%clk 0:02:04.5]} 18... Qxd8 {[%clk 0:02:13.8]} 19. Rxd8+ {[%clk 0:02:04.3]}
19... Bxd8 {[%clk 0:02:14.5]} 20. Bxc8 {[%clk 0:02:00.2]} 20... Rxc8 {[%clk
0:02:14.6]} 21. b3 {[%clk 0:01:59.9]} 21... Ba5 {[%clk 0:02:14.8]} 22. Rc1
{[%clk 0:01:39.2]} 22... Rd8 {[%clk 0:02:14.4]} 23. Rd1 {[%clk 0:01:35]} 23...
Rd3 {[%clk 0:02:04.4]} 24. Rxd3 {[%clk 0:01:27.9]} 24... Nxd3 {[%clk 0:02:05.3]}
25. Nd1 {[%clk 0:01:18.6]} 25... Nc1 {[%clk 0:02:04.6]} 26. h4 {[%clk
0:01:08.6]} 26... h6 {[%clk 0:02:01.6]} 27. hxg5 {[%clk 0:00:45.2]} 27... hxg5
{[%clk 0:02:02.5]} 28. Kf1 {[%clk 0:00:45.6]} 28... Nxa2 {[%clk 0:01:59.9]} 29.
Nf3 {[%clk 0:00:41]} 29... f6 {[%clk 0:01:56.5]} 30. Nd4 {[%clk 0:00:38.2]}
30... Nc1 {[%clk 0:01:51.3]} 31. Nf5 {[%clk 0:00:20.6]} 31... Nxb3 {[%clk
0:01:43.9]} 32. Nd6 {[%clk 0:00:19.8]} 32... Nc5 {[%clk 0:01:39.7]} 33. f3
{[%clk 0:00:15.8]} 33... Bc7 {[%clk 0:01:39.2]} 34. Ne8 {[%clk 0:00:12.7]} 34...
Be5 {[%clk 0:01:37.7]} 0-1